Workbook

Sheet Düğün Bütçesi
B2: LISHA + DANIEL DÜĞÜN
B5: KATEGORİSİ | C5: TAHMİNİ MALİYET | D5: GERÇEK MALİYET | E5: VARYANS | F5: BÜTÇE YÜZDESİ | J5: Sıralanmamış | K5: Tahmini Giderler | L5: Gerçek Giderler | M5: Tahmini Maliyet - Derece Değeri | N5: Derece | O5: No. | P5: Sıralanmış
B6: =P6 -> Resepsiyon | C6: =VLOOKUP(TBL_Summary[[#This Row],[KATEGORİSİ]],TBL_RankingData,2,FALSE) -> 14,500 ₺ | D6: =IF(VLOOKUP(TBL_Summary[[#This Row],[KATEGORİSİ]],TBL_RankingData,3,FALSE)=0,"",VLOOKUP(TBL_Summary[[#This Row],[KATEGORİSİ]],TBL_RankingData,3,FALSE)) -> 12,800 ₺ | E6: =IF(OR(TBL_Summary[[#This Row],[TAHMİNİ MALİYET]]="",TBL_Summary[[#This Row],[GERÇEK MALİYET]]=""),"",TBL_Summary[[#This Row],[TAHMİNİ MALİYET]]-TBL_Summary[[#This Row],[GERÇEK MALİYET]]) -> 1,700 ₺ | F6: =TBL_Summary[[#This Row],[TAHMİNİ MALİYET]]/SUM(TBL_Summary[TAHMİNİ MALİYET]) -> 48.7% | J6: Resepsiyon | K6: =TBL_Reception[[#Totals],[TAHMİNİ]] -> 14500 | L6: =TBL_Reception[[#Totals],[GERÇEK]] -> 12800 | M6: =K6-O6/100 -> 14499.99 | N6: =_xlfn.RANK.AVG(M6,$M$6:$M$15) -> 1 | O6: 1 | P6: =INDEX(TBL_RankingData,MATCH(O6,$N$6:$N$15,0),1) -> Resepsiyon
B7: =P7 -> Giyim | C7: =VLOOKUP(TBL_Summary[[#This Row],[KATEGORİSİ]],TBL_RankingData,2,FALSE) -> 4,000 ₺ | D7: =IF(VLOOKUP(TBL_Summary[[#This Row],[KATEGORİSİ]],TBL_RankingData,3,FALSE)=0,"",VLOOKUP(TBL_Summary[[#This Row],[KATEGORİSİ]],TBL_RankingData,3,FALSE)) -> 2,900 ₺ | E7: =IF(OR(TBL_Summary[[#This Row],[TAHMİNİ MALİYET]]="",TBL_Summary[[#This Row],[GERÇEK MALİYET]]=""),"",TBL_Summary[[#This Row],[TAHMİNİ MALİYET]]-TBL_Summary[[#This Row],[GERÇEK MALİYET]]) -> 1,100 ₺ | F7: =TBL_Summary[[#This Row],[TAHMİNİ MALİYET]]/SUM(TBL_Summary[TAHMİNİ MALİYET]) -> 13.4% | J7: Giyim | K7: =TBL_Attire[[#Totals],[TAHMİNİ]] -> 4000 | L7: =TBL_Attire[[#Totals],[GERÇEK]] -> 2900 | M7: =K7-O7/100 -> 3999.98 | N7: 2 | O7: 2 | P7: Giyim
B8: Çiçekler ve dekorasyon | C8: =VLOOKUP(TBL_Summary[[#This Row],[KATEGORİSİ]],TBL_RankingData,2,FALSE) -> 3,000 ₺ | D8: =IF(VLOOKUP(TBL_Summary[[#This Row],[KATEGORİSİ]],TBL_RankingData,3,FALSE)=0,"",VLOOKUP(TBL_Summary[[#This Row],[KATEGORİSİ]],TBL_RankingData,3,FALSE)) ->  | E8: =IF(OR(TBL_Summary[[#This Row],[TAHMİNİ MALİYET]]="",TBL_Summary[[#This Row],[GERÇEK MALİYET]]=""),"",TBL_Summary[[#This Row],[TAHMİNİ MALİYET]]-TBL_Summary[[#This Row],[GERÇEK MALİYET]]) ->  | F8: =TBL_Summary[[#This Row],[TAHMİNİ MALİYET]]/SUM(TBL_Summary[TAHMİNİ MALİYET]) -> 10.1% | J8: Çiçekler ve dekorasyon | K8: =TBL_FlowersAndDecor[[#Totals],[TAHMİNİ]] -> 3000 | L8: =TBL_FlowersAndDecor[[#Totals],[GERÇEK]] -> 0 | M8: 2999.97 | N8: 3 | O8: 3 | P8: Çiçekler ve dekorasyon
B9: Fotoğraf ve video | C9: =VLOOKUP(TBL_Summary[[#This Row],[KATEGORİSİ]],TBL_RankingData,2,FALSE) -> 2,500 ₺ | D9: =IF(VLOOKUP(TBL_Summary[[#This Row],[KATEGORİSİ]],TBL_RankingData,3,FALSE)=0,"",VLOOKUP(TBL_Summary[[#This Row],[KATEGORİSİ]],TBL_RankingData,3,FALSE)) ->  | E9: =IF(OR(TBL_Summary[[#This Row],[TAHMİNİ MALİYET]]="",TBL_Summary[[#This Row],[GERÇEK MALİYET]]=""),"",TBL_Summary[[#This Row],[TAHMİNİ MALİYET]]-TBL_Summary[[#This Row],[GERÇEK MALİYET]]) ->  | F9: =TBL_Summary[[#This Row],[TAHMİNİ MALİYET]]/SUM(TBL_Summary[TAHMİNİ MALİYET]) -> 8.4% | J9: Müzik | K9: =TBL_Music[[#Totals],[TAHMİNİ]] -> 1800 | L9: =TBL_Music[[#Totals],[GERÇEK]] -> 0 | M9: 1799.96 | N9: 5 | O9: 4 | P9: Fotoğraf ve video
B10: Müzik | C10: =VLOOKUP(TBL_Summary[[#This Row],[KATEGORİSİ]],TBL_RankingData,2,FALSE) -> 1,800 ₺ | D10: =IF(VLOOKUP(TBL_Summary[[#This Row],[KATEGORİSİ]],TBL_RankingData,3,FALSE)=0,"",VLOOKUP(TBL_Summary[[#This Row],[KATEGORİSİ]],TBL_RankingData,3,FALSE)) ->  | E10: =IF(OR(TBL_Summary[[#This Row],[TAHMİNİ MALİYET]]="",TBL_Summary[[#This Row],[GERÇEK MALİYET]]=""),"",TBL_Summary[[#This Row],[TAHMİNİ MALİYET]]-TBL_Summary[[#This Row],[GERÇEK MALİYET]]) ->  | F10: =TBL_Summary[[#This Row],[TAHMİNİ MALİYET]]/SUM(TBL_Summary[TAHMİNİ MALİYET]) -> 6.1% | J10: Fotoğraf ve video | K10: =TBL_PhotographsAndVideo[[#Totals],[TAHMİNİ]] -> 2500 | L10: =TBL_PhotographsAndVideo[[#Totals],[GERÇEK]] -> 0 | M10: 2499.95 | N10: 4 | O10: 5 | P10: Müzik
B11: İkramlar ve Hediyeler | C11: =VLOOKUP(TBL_Summary[[#This Row],[KATEGORİSİ]],TBL_RankingData,2,FALSE) -> 1,100 ₺ | D11: =IF(VLOOKUP(TBL_Summary[[#This Row],[KATEGORİSİ]],TBL_RankingData,3,FALSE)=0,"",VLOOKUP(TBL_Summary[[#This Row],[KATEGORİSİ]],TBL_RankingData,3,FALSE)) ->  | E11: =IF(OR(TBL_Summary[[#This Row],[TAHMİNİ MALİYET]]="",TBL_Summary[[#This Row],[GERÇEK MALİYET]]=""),"",TBL_Summary[[#This Row],[TAHMİNİ MALİYET]]-TBL_Summary[[#This Row],[GERÇEK MALİYET]]) ->  | F11: =TBL_Summary[[#This Row],[TAHMİNİ MALİYET]]/SUM(TBL_Summary[TAHMİNİ MALİYET]) -> 3.7% | J11: İkramlar ve Hediyeler | K11: =TBL_FavorsAndGifts[[#Totals],[TAHMİNİ]] -> 1100 | L11: =TBL_FavorsAndGifts[[#Totals],[GERÇEK]] -> 0 | M11: 1099.94 | N11: 6 | O11: 6 | P11: İkramlar ve Hediyeler
B12: =P12 -> Nikah yüzükleri | C12: =VLOOKUP(TBL_Summary[[#This Row],[KATEGORİSİ]],TBL_RankingData,2,FALSE) -> 1,100 ₺ | D12: =IF(VLOOKUP(TBL_Summary[[#This Row],[KATEGORİSİ]],TBL_RankingData,3,FALSE)=0,"",VLOOKUP(TBL_Summary[[#This Row],[KATEGORİSİ]],TBL_RankingData,3,FALSE)) ->  | E12: =IF(OR(TBL_Summary[[#This Row],[TAHMİNİ MALİYET]]="",TBL_Summary[[#This Row],[GERÇEK MALİYET]]=""),"",TBL_Summary[[#This Row],[TAHMİNİ MALİYET]]-TBL_Summary[[#This Row],[GERÇEK MALİYET]]) ->  | F12: =TBL_Summary[[#This Row],[TAHMİNİ MALİYET]]/SUM(TBL_Summary[TAHMİNİ MALİYET]) -> 3.7% | J12: Tören | K12: =TBL_Ceremony[[#Totals],[TAHMİNİ]] -> 800 | L12: =TBL_Ceremony[[#Totals],[GERÇEK]] -> 0 | M12: 799.93 | N12: 8 | O12: 7 | P12: Nikah yüzükleri
B13: Tören | C13: =VLOOKUP(TBL_Summary[[#This Row],[KATEGORİSİ]],TBL_RankingData,2,FALSE) -> 800 ₺ | D13: =IF(VLOOKUP(TBL_Summary[[#This Row],[KATEGORİSİ]],TBL_RankingData,3,FALSE)=0,"",VLOOKUP(TBL_Summary[[#This Row],[KATEGORİSİ]],TBL_RankingData,3,FALSE)) ->  | E13: =IF(OR(TBL_Summary[[#This Row],[TAHMİNİ MALİYET]]="",TBL_Summary[[#This Row],[GERÇEK MALİYET]]=""),"",TBL_Summary[[#This Row],[TAHMİNİ MALİYET]]-TBL_Summary[[#This Row],[GERÇEK MALİYET]]) ->  | F13: =TBL_Summary[[#This Row],[TAHMİNİ MALİYET]]/SUM(TBL_Summary[TAHMİNİ MALİYET]) -> 2.7% | J13: Kırtasiye | K13: =TBL_Stationery[[#Totals],[TAHMİNİ]] -> 500 | L13: =TBL_Stationery[[#Totals],[GERÇEK]] -> 0 | M13: 499.92 | N13: 9 | O13: 8 | P13: Tören
B14: Kırtasiye | C14: =VLOOKUP(TBL_Summary[[#This Row],[KATEGORİSİ]],TBL_RankingData,2,FALSE) -> 500 ₺ | D14: =IF(VLOOKUP(TBL_Summary[[#This Row],[KATEGORİSİ]],TBL_RankingData,3,FALSE)=0,"",VLOOKUP(TBL_Summary[[#This Row],[KATEGORİSİ]],TBL_RankingData,3,FALSE)) ->  | E14: =IF(OR(TBL_Summary[[#This Row],[TAHMİNİ MALİYET]]="",TBL_Summary[[#This Row],[GERÇEK MALİYET]]=""),"",TBL_Summary[[#This Row],[TAHMİNİ MALİYET]]-TBL_Summary[[#This Row],[GERÇEK MALİYET]]) ->  | F14: =TBL_Summary[[#This Row],[TAHMİNİ MALİYET]]/SUM(TBL_Summary[TAHMİNİ MALİYET]) -> 1.7% | J14: Nikah yüzükleri | K14: =TBL_WeddingRings[[#Totals],[TAHMİNİ]] -> 1100 | L14: =TBL_WeddingRings[[#Totals],[GERÇEK]] -> 0 | M14: 1099.91 | N14: 7 | O14: 9 | P14: Kırtasiye
B15: Ulaşım | C15: =VLOOKUP(TBL_Summary[[#This Row],[KATEGORİSİ]],TBL_RankingData,2,FALSE) -> 450 ₺ | D15: =IF(VLOOKUP(TBL_Summary[[#This Row],[KATEGORİSİ]],TBL_RankingData,3,FALSE)=0,"",VLOOKUP(TBL_Summary[[#This Row],[KATEGORİSİ]],TBL_RankingData,3,FALSE)) ->  | E15: =IF(OR(TBL_Summary[[#This Row],[TAHMİNİ MALİYET]]="",TBL_Summary[[#This Row],[GERÇEK MALİYET]]=""),"",TBL_Summary[[#This Row],[TAHMİNİ MALİYET]]-TBL_Summary[[#This Row],[GERÇEK MALİYET]]) ->  | F15: =TBL_Summary[[#This Row],[TAHMİNİ MALİYET]]/SUM(TBL_Summary[TAHMİNİ MALİYET]) -> 1.5% | J15: Ulaşım | K15: =TBL_Transportation[[#Totals],[TAHMİNİ]] -> 450 | L15: =TBL_Transportation[[#Totals],[GERÇEK]] -> 0 | M15: 449.9 | N15: 10 | O15: 10 | P15: Ulaşım
B16: Toplam | C16: =SUBTOTAL(109,TBL_Summary[TAHMİNİ MALİYET]) -> 29,750 ₺ | D16: =SUBTOTAL(109,TBL_Summary[GERÇEK MALİYET]) -> 15,700 ₺ | E16: =TBL_Summary[[#Totals],[TAHMİNİ MALİYET]]-TBL_Summary[[#Totals],[GERÇEK MALİYET]] -> 14,050 ₺ | F16: =SUBTOTAL(109,TBL_Summary[BÜTÇE YÜZDESİ]) -> 100%

Sheet Bütçe Detayları
B2: BÜTÇE AYRINTILARI
B4: RESEPSİYON | C4: TAHMİNİ | D4: GERÇEK | E4: VARYANS
B5: Mekan ve kiralamalar | C5: 8,000.00 ₺ | D5: 7,800.00 ₺ | E5: =IF(OR(TBL_Reception[[#This Row],[TAHMİNİ]]="",TBL_Reception[[#This Row],[GERÇEK]]=""),"",TBL_Reception[[#This Row],[TAHMİNİ]]-TBL_Reception[[#This Row],[GERÇEK]]) -> 200.00 ₺
B6: Yemek ve servis | C6: 4,000.00 ₺ | D6: 4,200.00 ₺ | E6: =IF(OR(TBL_Reception[[#This Row],[TAHMİNİ]]="",TBL_Reception[[#This Row],[GERÇEK]]=""),"",TBL_Reception[[#This Row],[TAHMİNİ]]-TBL_Reception[[#This Row],[GERÇEK]]) -> -200.00 ₺
B7: İçecekler | C7: 1,000.00 ₺ | D7: 800.00 ₺ | E7: =IF(OR(TBL_Reception[[#This Row],[TAHMİNİ]]="",TBL_Reception[[#This Row],[GERÇEK]]=""),"",TBL_Reception[[#This Row],[TAHMİNİ]]-TBL_Reception[[#This Row],[GERÇEK]]) -> 200.00 ₺
B8: Pasta | C8: 1,000.00 ₺ | E8: =IF(OR(TBL_Reception[[#This Row],[TAHMİNİ]]="",TBL_Reception[[#This Row],[GERÇEK]]=""),"",TBL_Reception[[#This Row],[TAHMİNİ]]-TBL_Reception[[#This Row],[GERÇEK]]) -> 
B9: Çeşitli ücretler | C9: 500.00 ₺ | E9: =IF(OR(TBL_Reception[[#This Row],[TAHMİNİ]]="",TBL_Reception[[#This Row],[GERÇEK]]=""),"",TBL_Reception[[#This Row],[TAHMİNİ]]-TBL_Reception[[#This Row],[GERÇEK]]) -> 
B10: RESEPSİYON TOPLAMI | C10: =SUBTOTAL(109,TBL_Reception[TAHMİNİ]) -> 14,500.00 ₺ | D10: =SUBTOTAL(109,TBL_Reception[GERÇEK]) -> 12,800.00 ₺ | E10: =TBL_Reception[[#Totals],[TAHMİNİ]]-TBL_Reception[[#Totals],[GERÇEK]] -> 1,700.00 ₺
B13: GİYİM | C13: TAHMİNİ | D13: GERÇEK | E13: VARYANS
B14: Gelinlik, Damatlık ve/veya elbiseler | C14: 3,000.00 ₺ | D14: 2,900.00 ₺ | E14: =IF(OR(TBL_Attire[[#This Row],[TAHMİNİ]]="",TBL_Attire[[#This Row],[GERÇEK]]=""),"",TBL_Attire[[#This Row],[TAHMİNİ]]-TBL_Attire[[#This Row],[GERÇEK]]) -> 100.00 ₺
B15: Tadilatlar | C15: 100.00 ₺ | E15: =IF(OR(TBL_Attire[[#This Row],[TAHMİNİ]]="",TBL_Attire[[#This Row],[GERÇEK]]=""),"",TBL_Attire[[#This Row],[TAHMİNİ]]-TBL_Attire[[#This Row],[GERÇEK]]) -> 
B16: Saç ve tül | C16: 200.00 ₺ | E16: =IF(OR(TBL_Attire[[#This Row],[TAHMİNİ]]="",TBL_Attire[[#This Row],[GERÇEK]]=""),"",TBL_Attire[[#This Row],[TAHMİNİ]]-TBL_Attire[[#This Row],[GERÇEK]]) -> 
B17: Aksesuarlar | C17: 100.00 ₺ | E17: =IF(OR(TBL_Attire[[#This Row],[TAHMİNİ]]="",TBL_Attire[[#This Row],[GERÇEK]]=""),"",TBL_Attire[[#This Row],[TAHMİNİ]]-TBL_Attire[[#This Row],[GERÇEK]]) -> 
B18: Saç ve makyaj | C18: 500.00 ₺ | E18: =IF(OR(TBL_Attire[[#This Row],[TAHMİNİ]]="",TBL_Attire[[#This Row],[GERÇEK]]=""),"",TBL_Attire[[#This Row],[TAHMİNİ]]-TBL_Attire[[#This Row],[GERÇEK]]) -> 
B19: Çeşitli ücretler | C19: 100.00 ₺ | E19: =IF(OR(TBL_Attire[[#This Row],[TAHMİNİ]]="",TBL_Attire[[#This Row],[GERÇEK]]=""),"",TBL_Attire[[#This Row],[TAHMİNİ]]-TBL_Attire[[#This Row],[GERÇEK]]) -> 
B20: GİYİM TOPLAMI | C20: =SUBTOTAL(109,TBL_Attire[TAHMİNİ]) -> 4,000.00 ₺ | D20: =SUBTOTAL(109,TBL_Attire[GERÇEK]) -> 2,900.00 ₺ | E20: =TBL_Attire[[#Totals],[TAHMİNİ]]-TBL_Attire[[#Totals],[GERÇEK]] -> 1,100.00 ₺
B23: ÇİÇEKLER VE DEKORASYON | C23: TAHMİNİ | D23: GERÇEK | E23: VARYANS
B24: Tören için çiçek düzenlemeleri | C24: 1,000.00 ₺ | E24: =IF(OR(TBL_FlowersAndDecor[[#This Row],[TAHMİNİ]]="",TBL_FlowersAndDecor[[#This Row],[GERÇEK]]=""),"",TBL_FlowersAndDecor[[#This Row],[TAHMİNİ]]-TBL_FlowersAndDecor[[#This Row],[GERÇEK]]) -> 
B25: Çiçekçi kızın goncaları ve sepeti | C25: 500.00 ₺ | E25: =IF(OR(TBL_FlowersAndDecor[[#This Row],[TAHMİNİ]]="",TBL_FlowersAndDecor[[#This Row],[GERÇEK]]=""),"",TBL_FlowersAndDecor[[#This Row],[TAHMİNİ]]-TBL_FlowersAndDecor[[#This Row],[GERÇEK]]) -> 
B26: Yüzük yastığı | C26: 100.00 ₺ | E26: =IF(OR(TBL_FlowersAndDecor[[#This Row],[TAHMİNİ]]="",TBL_FlowersAndDecor[[#This Row],[GERÇEK]]=""),"",TBL_FlowersAndDecor[[#This Row],[TAHMİNİ]]-TBL_FlowersAndDecor[[#This Row],[GERÇEK]]) -> 
B27: Buket | C27: 500.00 ₺ | E27: =IF(OR(TBL_FlowersAndDecor[[#This Row],[TAHMİNİ]]="",TBL_FlowersAndDecor[[#This Row],[GERÇEK]]=""),"",TBL_FlowersAndDecor[[#This Row],[TAHMİNİ]]-TBL_FlowersAndDecor[[#This Row],[GERÇEK]]) -> 
B28: Yaka Çiçeği | C28: 100.00 ₺ | E28: =IF(OR(TBL_FlowersAndDecor[[#This Row],[TAHMİNİ]]="",TBL_FlowersAndDecor[[#This Row],[GERÇEK]]=""),"",TBL_FlowersAndDecor[[#This Row],[TAHMİNİ]]-TBL_FlowersAndDecor[[#This Row],[GERÇEK]]) -> 
B29: Çiçek Buketleri | C29: 200.00 ₺ | E29: =IF(OR(TBL_FlowersAndDecor[[#This Row],[TAHMİNİ]]="",TBL_FlowersAndDecor[[#This Row],[GERÇEK]]=""),"",TBL_FlowersAndDecor[[#This Row],[TAHMİNİ]]-TBL_FlowersAndDecor[[#This Row],[GERÇEK]]) -> 
B30: Resepsiyon dekorasyonu | C30: 300.00 ₺ | E30: =IF(OR(TBL_FlowersAndDecor[[#This Row],[TAHMİNİ]]="",TBL_FlowersAndDecor[[#This Row],[GERÇEK]]=""),"",TBL_FlowersAndDecor[[#This Row],[TAHMİNİ]]-TBL_FlowersAndDecor[[#This Row],[GERÇEK]]) -> 
B31: Aydınlatma | C31: 200.00 ₺ | E31: =IF(OR(TBL_FlowersAndDecor[[#This Row],[TAHMİNİ]]="",TBL_FlowersAndDecor[[#This Row],[GERÇEK]]=""),"",TBL_FlowersAndDecor[[#This Row],[TAHMİNİ]]-TBL_FlowersAndDecor[[#This Row],[GERÇEK]]) -> 
B32: Çeşitli ücretler | C32: 100.00 ₺ | E32: =IF(OR(TBL_FlowersAndDecor[[#This Row],[TAHMİNİ]]="",TBL_FlowersAndDecor[[#This Row],[GERÇEK]]=""),"",TBL_FlowersAndDecor[[#This Row],[TAHMİNİ]]-TBL_FlowersAndDecor[[#This Row],[GERÇEK]]) -> 
B33: ÇIÇEKLER VE DEKORASYON TOPLAMI | C33: =SUBTOTAL(109,TBL_FlowersAndDecor[TAHMİNİ]) -> 3,000.00 ₺ | D33: =SUBTOTAL(109,TBL_FlowersAndDecor[GERÇEK]) -> 0.00 ₺ | E33: =TBL_FlowersAndDecor[[#Totals],[TAHMİNİ]]-TBL_FlowersAndDecor[[#Totals],[GERÇEK]] -> 3,000.00 ₺
B36: MÜZİK | C36: TAHMİNİ | D36: GERÇEK | E36: VARYANS
B37: Tören müzisyenleri | C37: 700.00 ₺ | E37: =IF(OR(TBL_Music[[#This Row],[TAHMİNİ]]="",TBL_Music[[#This Row],[GERÇEK]]=""),"",TBL_Music[[#This Row],[TAHMİNİ]]-TBL_Music[[#This Row],[GERÇEK]]) -> 
B38: Kokteyl müzisyenleri | C38: 300.00 ₺ | E38: =IF(OR(TBL_Music[[#This Row],[TAHMİNİ]]="",TBL_Music[[#This Row],[GERÇEK]]=""),"",TBL_Music[[#This Row],[TAHMİNİ]]-TBL_Music[[#This Row],[GERÇEK]]) -> 
B39: Resepsiyon müzik grubu, dj veya gösteri | C39: 200.00 ₺ | E39: =IF(OR(TBL_Music[[#This Row],[TAHMİNİ]]="",TBL_Music[[#This Row],[GERÇEK]]=""),"",TBL_Music[[#This Row],[TAHMİNİ]]-TBL_Music[[#This Row],[GERÇEK]]) -> 
B40: Ses sistemi veya dans pisti kiralama | C40: 400.00 ₺ | E40: =IF(OR(TBL_Music[[#This Row],[TAHMİNİ]]="",TBL_Music[[#This Row],[GERÇEK]]=""),"",TBL_Music[[#This Row],[TAHMİNİ]]-TBL_Music[[#This Row],[GERÇEK]]) -> 
B41: Çeşitli ücretler | C41: 200.00 ₺ | E41: =IF(OR(TBL_Music[[#This Row],[TAHMİNİ]]="",TBL_Music[[#This Row],[GERÇEK]]=""),"",TBL_Music[[#This Row],[TAHMİNİ]]-TBL_Music[[#This Row],[GERÇEK]]) -> 
B42: MÜZIK TOPLAMI | C42: =SUBTOTAL(109,TBL_Music[TAHMİNİ]) -> 1,800.00 ₺ | D42: =SUBTOTAL(109,TBL_Music[GERÇEK]) -> 0.00 ₺ | E42: =TBL_Music[[#Totals],[TAHMİNİ]]-TBL_Music[[#Totals],[GERÇEK]] -> 1,800.00 ₺
B45: FOTOĞRAF VE VİDEO | C45: TAHMİNİ | D45: GERÇEK | E45: VARYANS
B46: Fotoğraf | C46: 1,000.00 ₺ | E46: =IF(OR(TBL_PhotographsAndVideo[[#This Row],[TAHMİNİ]]="",TBL_PhotographsAndVideo[[#This Row],[GERÇEK]]=""),"",TBL_PhotographsAndVideo[[#This Row],[TAHMİNİ]]-TBL_PhotographsAndVideo[[#This Row],[GERÇEK]]) -> 
B47: Videografi | C47: 800.00 ₺ | E47: =IF(OR(TBL_PhotographsAndVideo[[#This Row],[TAHMİNİ]]="",TBL_PhotographsAndVideo[[#This Row],[GERÇEK]]=""),"",TBL_PhotographsAndVideo[[#This Row],[TAHMİNİ]]-TBL_PhotographsAndVideo[[#This Row],[GERÇEK]]) -> 
B48: Ek baskılar ve albümler | C48: 500.00 ₺ | E48: =IF(OR(TBL_PhotographsAndVideo[[#This Row],[TAHMİNİ]]="",TBL_PhotographsAndVideo[[#This Row],[GERÇEK]]=""),"",TBL_PhotographsAndVideo[[#This Row],[TAHMİNİ]]-TBL_PhotographsAndVideo[[#This Row],[GERÇEK]]) -> 
B49: Çeşitli ücretler | C49: 200.00 ₺ | E49: =IF(OR(TBL_PhotographsAndVideo[[#This Row],[TAHMİNİ]]="",TBL_PhotographsAndVideo[[#This Row],[GERÇEK]]=""),"",TBL_PhotographsAndVideo[[#This Row],[TAHMİNİ]]-TBL_PhotographsAndVideo[[#This Row],[GERÇEK]]) -> 
B50: FOTOĞRAF VE VİDEO TOPLAMI | C50: =SUBTOTAL(109,TBL_PhotographsAndVideo[TAHMİNİ]) -> 2,500.00 ₺ | D50: =SUBTOTAL(109,TBL_PhotographsAndVideo[GERÇEK]) -> 0.00 ₺ | E50: =TBL_PhotographsAndVideo[[#Totals],[TAHMİNİ]]-TBL_PhotographsAndVideo[[#Totals],[GERÇEK]] -> 2,500.00 ₺
B53: HEDİYELER | C53: TAHMİNİ | D53: GERÇEK | E53: VARYANS
B54: Hoş geldiniz hediyeleri | C54: 700.00 ₺ | E54: =IF(OR(TBL_FavorsAndGifts[[#This Row],[TAHMİNİ]]="",TBL_FavorsAndGifts[[#This Row],[GERÇEK]]=""),"",TBL_FavorsAndGifts[[#This Row],[TAHMİNİ]]-TBL_FavorsAndGifts[[#This Row],[GERÇEK]]) -> 
B55: Parti hediyeleri | C55: 200.00 ₺ | E55: =IF(OR(TBL_FavorsAndGifts[[#This Row],[TAHMİNİ]]="",TBL_FavorsAndGifts[[#This Row],[GERÇEK]]=""),"",TBL_FavorsAndGifts[[#This Row],[TAHMİNİ]]-TBL_FavorsAndGifts[[#This Row],[GERÇEK]]) -> 
B56: Çeşitli ücretler | C56: 200.00 ₺ | E56: =IF(OR(TBL_FavorsAndGifts[[#This Row],[TAHMİNİ]]="",TBL_FavorsAndGifts[[#This Row],[GERÇEK]]=""),"",TBL_FavorsAndGifts[[#This Row],[TAHMİNİ]]-TBL_FavorsAndGifts[[#This Row],[GERÇEK]]) -> 
B57: HEDİYE TOPLAMI | C57: =SUBTOTAL(109,TBL_FavorsAndGifts[TAHMİNİ]) -> 1,100.00 ₺ | D57: =SUBTOTAL(109,TBL_FavorsAndGifts[GERÇEK]) -> 0.00 ₺ | E57: =TBL_FavorsAndGifts[[#Totals],[TAHMİNİ]]-TBL_FavorsAndGifts[[#Totals],[GERÇEK]] -> 1,100.00 ₺
B60: TÖREN | C60: TAHMİNİ | D60: GERÇEK | E60: VARYANS
B61: Mekan ücreti | C61: 500.00 ₺ | E61: =IF(OR(TBL_Ceremony[[#This Row],[TAHMİNİ]]="",TBL_Ceremony[[#This Row],[GERÇEK]]=""),"",TBL_Ceremony[[#This Row],[TAHMİNİ]]-TBL_Ceremony[[#This Row],[GERÇEK]]) -> 
B62: Nikah memuru ücreti veya din görevlisi bağışı | C62: 200.00 ₺ | E62: =IF(OR(TBL_Ceremony[[#This Row],[TAHMİNİ]]="",TBL_Ceremony[[#This Row],[GERÇEK]]=""),"",TBL_Ceremony[[#This Row],[TAHMİNİ]]-TBL_Ceremony[[#This Row],[GERÇEK]]) -> 
B63: Çeşitli ücretler | C63: 100.00 ₺ | E63: =IF(OR(TBL_Ceremony[[#This Row],[TAHMİNİ]]="",TBL_Ceremony[[#This Row],[GERÇEK]]=""),"",TBL_Ceremony[[#This Row],[TAHMİNİ]]-TBL_Ceremony[[#This Row],[GERÇEK]]) -> 
B64: TÖREN TOPLAMI | C64: =SUBTOTAL(109,TBL_Ceremony[TAHMİNİ]) -> 800.00 ₺ | D64: =SUBTOTAL(109,TBL_Ceremony[GERÇEK]) -> 0.00 ₺ | E64: =TBL_Ceremony[[#Totals],[TAHMİNİ]]-TBL_Ceremony[[#Totals],[GERÇEK]] -> 800.00 ₺
B67: KIRTASİYE | C67: TAHMİNİ | D67: GERÇEK | E67: VARYANS
B68: Ön davetiye kartları | C68: 50.00 ₺ | E68: =IF(OR(TBL_Stationery[[#This Row],[TAHMİNİ]]="",TBL_Stationery[[#This Row],[GERÇEK]]=""),"",TBL_Stationery[[#This Row],[TAHMİNİ]]-TBL_Stationery[[#This Row],[GERÇEK]]) -> 
B69: Davetiyeler ve LCV’ler | C69: 100.00 ₺ | E69: =IF(OR(TBL_Stationery[[#This Row],[TAHMİNİ]]="",TBL_Stationery[[#This Row],[GERÇEK]]=""),"",TBL_Stationery[[#This Row],[TAHMİNİ]]-TBL_Stationery[[#This Row],[GERÇEK]]) -> 
B70: Programlar | C70: 50.00 ₺ | E70: =IF(OR(TBL_Stationery[[#This Row],[TAHMİNİ]]="",TBL_Stationery[[#This Row],[GERÇEK]]=""),"",TBL_Stationery[[#This Row],[TAHMİNİ]]-TBL_Stationery[[#This Row],[GERÇEK]]) -> 
B71: Oturma ve yerleştirme kartları | C71: 50.00 ₺ | E71: =IF(OR(TBL_Stationery[[#This Row],[TAHMİNİ]]="",TBL_Stationery[[#This Row],[GERÇEK]]=""),"",TBL_Stationery[[#This Row],[TAHMİNİ]]-TBL_Stationery[[#This Row],[GERÇEK]]) -> 
B72: Menü kartları | C72: 50.00 ₺ | E72: =IF(OR(TBL_Stationery[[#This Row],[TAHMİNİ]]="",TBL_Stationery[[#This Row],[GERÇEK]]=""),"",TBL_Stationery[[#This Row],[TAHMİNİ]]-TBL_Stationery[[#This Row],[GERÇEK]]) -> 
B73: Teşekkür notları | C73: 50.00 ₺ | E73: =IF(OR(TBL_Stationery[[#This Row],[TAHMİNİ]]="",TBL_Stationery[[#This Row],[GERÇEK]]=""),"",TBL_Stationery[[#This Row],[TAHMİNİ]]-TBL_Stationery[[#This Row],[GERÇEK]]) -> 
B74: Posta | C74: 50.00 ₺ | E74: =IF(OR(TBL_Stationery[[#This Row],[TAHMİNİ]]="",TBL_Stationery[[#This Row],[GERÇEK]]=""),"",TBL_Stationery[[#This Row],[TAHMİNİ]]-TBL_Stationery[[#This Row],[GERÇEK]]) -> 
B75: Çeşitli ücretler | C75: 100.00 ₺ | E75: =IF(OR(TBL_Stationery[[#This Row],[TAHMİNİ]]="",TBL_Stationery[[#This Row],[GERÇEK]]=""),"",TBL_Stationery[[#This Row],[TAHMİNİ]]-TBL_Stationery[[#This Row],[GERÇEK]]) -> 
B76: KIRTASİYE TOPLAMI | C76: =SUBTOTAL(109,TBL_Stationery[TAHMİNİ]) -> 500.00 ₺ | D76: =SUBTOTAL(109,TBL_Stationery[GERÇEK]) -> 0.00 ₺ | E76: =TBL_Stationery[[#Totals],[TAHMİNİ]]-TBL_Stationery[[#Totals],[GERÇEK]] -> 500.00 ₺
B79: NİKAH YÜZÜKLERİ | C79: TAHMİNİ | D79: GERÇEK | E79: VARYANS
B80: Nikah yüzükleri | C80: 1,000.00 ₺ | E80: =IF(OR(TBL_WeddingRings[[#This Row],[TAHMİNİ]]="",TBL_WeddingRings[[#This Row],[GERÇEK]]=""),"",TBL_WeddingRings[[#This Row],[TAHMİNİ]]-TBL_WeddingRings[[#This Row],[GERÇEK]]) -> 
B81: Yüzük aksesuarları | C81: 100.00 ₺ | E81: =IF(OR(TBL_WeddingRings[[#This Row],[TAHMİNİ]]="",TBL_WeddingRings[[#This Row],[GERÇEK]]=""),"",TBL_WeddingRings[[#This Row],[TAHMİNİ]]-TBL_WeddingRings[[#This Row],[GERÇEK]]) -> 
B82: NİKAH YÜZÜKLERİ TOPLAMI | C82: =SUBTOTAL(109,TBL_WeddingRings[TAHMİNİ]) -> 1,100.00 ₺ | D82: =SUBTOTAL(109,TBL_WeddingRings[GERÇEK]) -> 0.00 ₺ | E82: =TBL_WeddingRings[[#Totals],[TAHMİNİ]]-TBL_WeddingRings[[#Totals],[GERÇEK]] -> 1,100.00 ₺
B85: ULAŞIM | C85: TAHMİNİ | D85: GERÇEK | E85: VARYANS
B86: Esas araba kiralama | C86: 100.00 ₺ | E86: =IF(OR(TBL_Transportation[[#This Row],[TAHMİNİ]]="",TBL_Transportation[[#This Row],[GERÇEK]]=""),"",TBL_Transportation[[#This Row],[TAHMİNİ]]-TBL_Transportation[[#This Row],[GERÇEK]]) -> 
B87: Misafirler için araba kiralama | C87: 100.00 ₺ | E87: =IF(OR(TBL_Transportation[[#This Row],[TAHMİNİ]]="",TBL_Transportation[[#This Row],[GERÇEK]]=""),"",TBL_Transportation[[#This Row],[TAHMİNİ]]-TBL_Transportation[[#This Row],[GERÇEK]]) -> 
B88: Şehir dışı misafirlerin ulaşımı | C88: 100.00 ₺ | E88: =IF(OR(TBL_Transportation[[#This Row],[TAHMİNİ]]="",TBL_Transportation[[#This Row],[GERÇEK]]=""),"",TBL_Transportation[[#This Row],[TAHMİNİ]]-TBL_Transportation[[#This Row],[GERÇEK]]) -> 
B89: Vale ücreti | C89: 50.00 ₺ | E89: =IF(OR(TBL_Transportation[[#This Row],[TAHMİNİ]]="",TBL_Transportation[[#This Row],[GERÇEK]]=""),"",TBL_Transportation[[#This Row],[TAHMİNİ]]-TBL_Transportation[[#This Row],[GERÇEK]]) -> 
B90: Çeşitli ücretler | C90: 100.00 ₺ | E90: =IF(OR(TBL_Transportation[[#This Row],[TAHMİNİ]]="",TBL_Transportation[[#This Row],[GERÇEK]]=""),"",TBL_Transportation[[#This Row],[TAHMİNİ]]-TBL_Transportation[[#This Row],[GERÇEK]]) -> 
B91: ULAŞIM TOPLAMI | C91: =SUBTOTAL(109,TBL_Transportation[TAHMİNİ]) -> 450.00 ₺ | D91: =SUBTOTAL(109,TBL_Transportation[GERÇEK]) -> 0.00 ₺ | E91: =TBL_Transportation[[#Totals],[TAHMİNİ]]-TBL_Transportation[[#Totals],[GERÇEK]] -> 450.00 ₺
